[Event "Titled Tuesday Blitz February 07 Early 2023"]
[White "Sychev, Klementy"]
[Black "Kilic, Eray"]
[WhiteFideId "4114060"]
[BlackFideId "44517173"]
[WhiteElo "2547"]
[BlackElo "2414"]
[Result "0-1"]
[Round "10"]
[TimeControl "180+2"]
[Date "2023.02.07"]
[WhiteClock "0:00:00"]
[BlackClock "0:00:34"]

1. e4 {[%clk 0:03:00]}  c5 {[%clk 0:02:58]} 2. Nf3 {[%clk 0:03:01]}  d6 {[%clk 0:02:57]} 3. d4 {[%clk 0:03:01]}  cxd4 {[%clk 0:02:58]} 4. Nxd4 {[%clk 0:03:02]}  Nf6 {[%clk 0:02:59]} 5. Nc3 {[%clk 0:03:03]}  a6 {[%clk 0:02:59]} 6. Bg5 {[%clk 0:03:03]}  e6 {[%clk 0:02:57]} 7. f4 {[%clk 0:03:03]}  Be7 {[%clk 0:02:58]} 8. Qf3 {[%clk 0:03:03]}  Nbd7 {[%clk 0:02:58]} 9. Bc4 {[%clk 0:02:59]}  Nc5 {[%clk 0:02:53]} 10. O-O-O {[%clk 0:02:44]}  Qc7 {[%clk 0:02:52]} 11. Rhe1 {[%clk 0:01:53]}  b5 {[%clk 0:02:41]} 12. Bxb5+ {[%clk 0:01:53]}  axb5 {[%clk 0:02:41]} 13. Ndxb5 {[%clk 0:01:54]}  Qb6 {[%clk 0:02:40]} 14. e5 {[%clk 0:01:37]}  Bb7 {[%clk 0:02:40]} 15. Qh3 {[%clk 0:01:26]}  dxe5 {[%clk 0:02:24]} 16. fxe5 {[%clk 0:01:25]}  Nfe4 {[%clk 0:02:20]} 17. Bxe7 {[%clk 0:01:20]}  Kxe7 {[%clk 0:02:21]} 18. Rd6 {[%clk 0:00:42]}  Nxd6 {[%clk 0:01:46]} 19. exd6+ {[%clk 0:00:42]}  Kd7 {[%clk 0:01:45]} 20. Qh5 {[%clk 0:00:42]}  Rhf8 {[%clk 0:01:38]} 21. Rf1 {[%clk 0:00:38]}  f5 {[%clk 0:01:23]} 22. Qg5 {[%clk 0:00:33]}  Rf7 {[%clk 0:01:22]} 23. Qh5 {[%clk 0:00:21]}  g6 {[%clk 0:01:21]} 24. Qe2 {[%clk 0:00:19]}  Ne4 {[%clk 0:01:19]} 25. Rd1 {[%clk 0:00:14]}  Bc6 {[%clk 0:01:11]} 26. Nxe4 {[%clk 0:00:10]}  Bxb5 {[%clk 0:00:59]} 27. c4 {[%clk 0:00:09]}  Bxc4 {[%clk 0:00:52]} 28. Qxc4 {[%clk 0:00:01]}  Rc8 {[%clk 0:00:52]} 29. Nd2 {[%clk 0:00:01]}  Rxc4+ {[%clk 0:00:51]} 30. Nxc4 {[%clk 0:00:02]}  Qc5 {[%clk 0:00:51]} 31. b3 {[%clk 0:00:03]}  Rf8 {[%clk 0:00:51]} 32. Kb2 {[%clk 0:00:03]}  Ra8 {[%clk 0:00:51]} 33. Rd2 {[%clk 0:00:03]}  e5 {[%clk 0:00:48]} 34. g3 {[%clk 0:00:01]}  e4 {[%clk 0:00:49]} 35. Kc3 {[%clk 0:00:01]}  Re8 {[%clk 0:00:40]} 36. b4 {[%clk 0:00:01]}  Qg1 {[%clk 0:00:37]} 37. b5 {[%clk 0:00:01]}  e3 {[%clk 0:00:34]} 38. Kb3 {[%clk 0:00:00]}  exd2 {[%clk 0:00:34]} 0-1


[Site "https://www.chess.com"]

[Event "Titled Tuesday Blitz February 07 Early 2023"]
[White "Chigaev, Maksim"]
[Black "Avinash, Ramesh"]
[WhiteFideId "4108116"]
[BlackFideId "45018340"]
[WhiteElo "2628"]
[BlackElo "2319"]
[Result "0-1"]
[Round "10"]
[TimeControl "180+2"]
[Date "2023.02.07"]
[WhiteClock "0:00:18"]
[BlackClock "0:00:07"]

1. e4 {[%clk 0:03:00]}  c5 {[%clk 0:02:59]} 2. Nf3 {[%clk 0:03:00]}  d6 {[%clk 0:02:59]} 3. d4 {[%clk 0:02:59]}  cxd4 {[%clk 0:03:00]} 4. Nxd4 {[%clk 0:03:00]}  Nf6 {[%clk 0:03:00]} 5. Nc3 {[%clk 0:03:00]}  a6 {[%clk 0:03:00]} 6. Bg5 {[%clk 0:03:01]}  Nbd7 {[%clk 0:02:59]} 7. Bc4 {[%clk 0:03:00]}  e6 {[%clk 0:02:53]} 8. Qd2 {[%clk 0:02:50]}  Qa5 {[%clk 0:02:47]} 9. O-O-O {[%clk 0:02:46]}  Be7 {[%clk 0:02:46]} 10. f3 {[%clk 0:02:28]}  Ne5 {[%clk 0:02:43]} 11. Bb3 {[%clk 0:02:27]}  Bd7 {[%clk 0:02:43]} 12. Kb1 {[%clk 0:02:27]}  b5 {[%clk 0:02:40]} 13. h4 {[%clk 0:02:18]}  h6 {[%clk 0:02:37]} 14. Be3 {[%clk 0:02:17]}  h5 {[%clk 0:02:35]} 15. Bg5 {[%clk 0:02:17]}  Rb8 {[%clk 0:02:35]} 16. Ka1 {[%clk 0:02:17]}  Qc7 {[%clk 0:02:28]} 17. f4 {[%clk 0:02:09]}  Nc4 {[%clk 0:02:28]} 18. Bxc4 {[%clk 0:02:09]}  Qxc4 {[%clk 0:02:27]} 19. Rhe1 {[%clk 0:02:09]}  b4 {[%clk 0:02:25]} 20. Nd5 {[%clk 0:01:45]}  exd5 {[%clk 0:02:19]} 21. exd5 {[%clk 0:01:44]}  Kf8 {[%clk 0:02:20]} 22. f5 {[%clk 0:01:11]}  Re8 {[%clk 0:02:14]} 23. Qf4 {[%clk 0:01:08]}  Qc7 {[%clk 0:02:07]} 24. Qf3 {[%clk 0:00:53]}  Bd8 {[%clk 0:01:57]} 25. Rxe8+ {[%clk 0:00:40]}  Nxe8 {[%clk 0:01:56]} 26. Re1 {[%clk 0:00:40]}  Bf6 {[%clk 0:01:51]} 27. Nc6 {[%clk 0:00:33]}  Bxc6 {[%clk 0:01:45]} 28. dxc6 {[%clk 0:00:34]}  Be5 {[%clk 0:01:46]} 29. Qd5 {[%clk 0:00:28]}  f6 {[%clk 0:01:45]} 30. Be3 {[%clk 0:00:21]}  Qc8 {[%clk 0:01:37]} 31. Qc4 {[%clk 0:00:14]}  Nc7 {[%clk 0:01:29]} 32. Bb6 {[%clk 0:00:13]}  Qb8 {[%clk 0:01:26]} 33. Ba5 {[%clk 0:00:11]}  Qb5 {[%clk 0:01:22]} 34. Qxb4 {[%clk 0:00:12]}  Qxb4 {[%clk 0:01:19]} 35. Bxb4 {[%clk 0:00:12]}  Ke7 {[%clk 0:01:20]} 36. c4 {[%clk 0:00:10]}  Rb8 {[%clk 0:01:18]} 37. Ba5 {[%clk 0:00:11]}  Ne8 {[%clk 0:01:17]} 38. Re2 {[%clk 0:00:11]}  Rc8 {[%clk 0:01:16]} 39. Kb1 {[%clk 0:00:11]}  Rxc6 {[%clk 0:01:16]} 40. b3 {[%clk 0:00:12]}  Kd7 {[%clk 0:01:12]} 41. Kc2 {[%clk 0:00:11]}  d5 {[%clk 0:01:11]} 42. Rd2 {[%clk 0:00:11]}  d4 {[%clk 0:01:05]} 43. Bc3 {[%clk 0:00:11]}  Rd6 {[%clk 0:00:39]} 44. Bb4 {[%clk 0:00:11]}  Rc6 {[%clk 0:00:39]} 45. Bc3 {[%clk 0:00:12]}  Nd6 {[%clk 0:00:37]} 46. Bxd4 {[%clk 0:00:12]}  Bxd4 {[%clk 0:00:38]} 47. Rxd4 {[%clk 0:00:12]}  Ke7 {[%clk 0:00:39]} 48. Rd5 {[%clk 0:00:12]}  Nb7 {[%clk 0:00:33]} 49. Kc3 {[%clk 0:00:11]}  Rc5 {[%clk 0:00:33]} 50. Kd4 {[%clk 0:00:11]}  Rxd5+ {[%clk 0:00:32]} 51. Kxd5 {[%clk 0:00:12]}  Kd7 {[%clk 0:00:30]} 52. c5 {[%clk 0:00:11]}  Nd8 {[%clk 0:00:29]} 53. b4 {[%clk 0:00:12]}  Nc6 {[%clk 0:00:28]} 54. a3 {[%clk 0:00:12]}  Ne7+ {[%clk 0:00:26]} 55. Ke4 {[%clk 0:00:11]}  Kc6 {[%clk 0:00:25]} 56. g3 {[%clk 0:00:11]}  Kb5 {[%clk 0:00:21]} 57. Kd4 {[%clk 0:00:07]}  Nxf5+ {[%clk 0:00:17]} 58. Kd5 {[%clk 0:00:08]}  Ne3+ {[%clk 0:00:15]} 59. Kd6 {[%clk 0:00:06]}  Nc4+ {[%clk 0:00:15]} 60. Kd7 {[%clk 0:00:05]}  Nxa3 {[%clk 0:00:09]} 61. c6 {[%clk 0:00:05]}  Nc4 {[%clk 0:00:10]} 62. c7 {[%clk 0:00:05]}  Nb6+ {[%clk 0:00:10]} 63. Ke6 {[%clk 0:00:06]}  Kxb4 {[%clk 0:00:10]} 64. Kf7 {[%clk 0:00:06]}  a5 {[%clk 0:00:10]} 65. Kxg7 {[%clk 0:00:07]}  a4 {[%clk 0:00:11]} 66. g4 {[%clk 0:00:08]}  a3 {[%clk 0:00:10]} 67. gxh5 {[%clk 0:00:07]}  a2 {[%clk 0:00:11]} 68. h6 {[%clk 0:00:08]}  a1=Q {[%clk 0:00:12]} 69. h7 {[%clk 0:00:09]}  f5+ {[%clk 0:00:13]} 70. Kg8 {[%clk 0:00:09]}  Qg1+ {[%clk 0:00:13]} 71. Kf7 {[%clk 0:00:10]}  Qd4 {[%clk 0:00:12]} 72. Kg8 {[%clk 0:00:10]}  Qd5+ {[%clk 0:00:12]} 73. Kg7 {[%clk 0:00:11]}  Qe5+ {[%clk 0:00:13]} 74. Kg8 {[%clk 0:00:12]}  Qe6+ {[%clk 0:00:13]} 75. Kg7 {[%clk 0:00:13]}  Qe7+ {[%clk 0:00:11]} 76. Kg8 {[%clk 0:00:14]}  Qxh4 {[%clk 0:00:11]} 77. h8=Q {[%clk 0:00:14]}  Qxh8+ {[%clk 0:00:11]} 78. Kxh8 {[%clk 0:00:14]}  f4 {[%clk 0:00:12]} 79. Kg7 {[%clk 0:00:15]}  f3 {[%clk 0:00:13]} 80. Kf6 {[%clk 0:00:16]}  f2 {[%clk 0:00:13]} 81. Ke6 {[%clk 0:00:17]}  f1=Q {[%clk 0:00:14]} 82. Kd6 {[%clk 0:00:18]}  Qf5 {[%clk 0:00:11]} 83. Kc6 {[%clk 0:00:19]}  Qc5+ {[%clk 0:00:07]} 84. Kb7 {[%clk 0:00:19]}  Ka5 {[%clk 0:00:07]} 85. Kb8 {[%clk 0:00:18]}  Qf8+ {[%clk 0:00:07]} 86. Kb7 {[%clk 0:00:18]}  Qa8# {[%clk 0:00:07]} 0-1


[Site "https://www.chess.com"]

[Event "Titled Tuesday Blitz February 07 Early 2023"]
[White "Vaishali, Rameshbabu"]
[Black "Samunenkov, Ihor"]
[WhiteFideId "5091756"]
[BlackFideId "14187086"]
[WhiteElo "2418"]
[BlackElo "2501"]
[Result "0-1"]
[Round "10"]
[TimeControl "180+2"]
[Date "2023.02.07"]
[WhiteClock "0:00:03"]
[BlackClock "0:00:05"]

1. d4 {[%clk 0:03:00]}  d5 {[%clk 0:03:00]} 2. c4 {[%clk 0:03:00]}  e6 {[%clk 0:03:00]} 3. Nc3 {[%clk 0:03:00]}  a6 {[%clk 0:03:01]} 4. cxd5 {[%clk 0:02:58]}  exd5 {[%clk 0:03:01]} 5. Bf4 {[%clk 0:02:58]}  Nf6 {[%clk 0:03:00]} 6. e3 {[%clk 0:02:58]}  Bd6 {[%clk 0:03:01]} 7. Bxd6 {[%clk 0:02:58]}  Qxd6 {[%clk 0:03:02]} 8. Bd3 {[%clk 0:02:58]}  O-O {[%clk 0:02:57]} 9. Nge2 {[%clk 0:02:58]}  b6 {[%clk 0:02:56]} 10. Qd2 {[%clk 0:02:41]}  Bb7 {[%clk 0:02:55]} 11. f3 {[%clk 0:02:37]}  c5 {[%clk 0:02:51]} 12. O-O {[%clk 0:02:30]}  Nc6 {[%clk 0:02:45]} 13. Rad1 {[%clk 0:02:27]}  Rfe8 {[%clk 0:02:41]} 14. Bb1 {[%clk 0:02:23]}  Rad8 {[%clk 0:02:33]} 15. Kh1 {[%clk 0:02:08]}  Qe7 {[%clk 0:02:18]} 16. Nf4 {[%clk 0:01:48]}  Qxe3 {[%clk 0:02:13]} 17. Qxe3 {[%clk 0:01:45]}  Rxe3 {[%clk 0:02:14]} 18. dxc5 {[%clk 0:01:46]}  d4 {[%clk 0:02:11]} 19. Na4 {[%clk 0:01:40]}  b5 {[%clk 0:02:01]} 20. Nb6 {[%clk 0:01:39]}  Kf8 {[%clk 0:01:59]} 21. Nd3 {[%clk 0:01:21]}  Rde8 {[%clk 0:01:45]} 22. b4 {[%clk 0:01:15]}  Bc8 {[%clk 0:01:22]} 23. a3 {[%clk 0:00:50]}  Be6 {[%clk 0:01:15]} 24. Kg1 {[%clk 0:00:36]}  Bc4 {[%clk 0:01:12]} 25. Rfe1 {[%clk 0:00:26]}  Bxd3 {[%clk 0:00:39]} 26. Rxe3 {[%clk 0:00:25]}  dxe3 {[%clk 0:00:40]} 27. Bxd3 {[%clk 0:00:23]}  Nd4 {[%clk 0:00:35]} 28. Re1 {[%clk 0:00:19]}  g5 {[%clk 0:00:21]} 29. Kf1 {[%clk 0:00:14]}  h6 {[%clk 0:00:20]} 30. Rc1 {[%clk 0:00:04]}  Re6 {[%clk 0:00:18]} 31. Be2 {[%clk 0:00:03]}  Ke8 {[%clk 0:00:15]} 32. Rd1 {[%clk 0:00:03]}  Nb3 {[%clk 0:00:09]} 33. Rd3 {[%clk 0:00:03]}  Nd2+ {[%clk 0:00:09]} 34. Ke1 {[%clk 0:00:03]}  Nh5 {[%clk 0:00:08]} 35. g3 {[%clk 0:00:03]}  Nf6 {[%clk 0:00:06]} 36. Nd5 {[%clk 0:00:01]}  Nxd5 {[%clk 0:00:05]} 37. Rxd5 {[%clk 0:00:02]}  Ke7 {[%clk 0:00:04]} 38. Rd3 {[%clk 0:00:02]}  Nc4 {[%clk 0:00:05]} 39. Kd1 {[%clk 0:00:02]}  Nb2+ {[%clk 0:00:05]} 40. Kc2 {[%clk 0:00:03]}  Nxd3 {[%clk 0:00:06]} 41. Kxd3 {[%clk 0:00:03]}  f5 {[%clk 0:00:06]} 42. Kd4 {[%clk 0:00:03]}  f4 {[%clk 0:00:07]} 43. g4 {[%clk 0:00:03]}  Kd7 {[%clk 0:00:07]} 44. Kd5 {[%clk 0:00:02]}  Re8 {[%clk 0:00:05]} 45. c6+ {[%clk 0:00:02]}  Kc7 {[%clk 0:00:06]} 46. Kc5 {[%clk 0:00:02]}  Re6 {[%clk 0:00:06]} 47. a4 {[%clk 0:00:03]}  Rxc6+ {[%clk 0:00:06]} 48. Kd5 {[%clk 0:00:04]}  bxa4 {[%clk 0:00:06]} 49. b5 {[%clk 0:00:03]}  axb5 {[%clk 0:00:07]} 50. Bxb5 {[%clk 0:00:04]}  Rc1 {[%clk 0:00:05]} 51. Bxa4 {[%clk 0:00:03]}  e2 {[%clk 0:00:05]} 0-1


[Site "https://www.chess.com"]

[Event "Titled Tuesday Blitz February 07 Early 2023"]
[White "Harshavardhan G B"]
[Black "Yuan, Qingyu"]
[WhiteFideId "25059009"]
[BlackFideId "8609772"]
[WhiteElo "2408"]
[BlackElo "2373"]
[Result "1-0"]
[Round "10"]
[TimeControl "180+2"]
[Date "2023.02.07"]
[WhiteClock "0:00:16"]
[BlackClock "0:00:02"]

1. d4 {[%clk 0:03:00]}  d5 {[%clk 0:02:59]} 2. c4 {[%clk 0:02:57]}  e6 {[%clk 0:03:00]} 3. Nf3 {[%clk 0:02:55]}  Nf6 {[%clk 0:03:00]} 4. Nc3 {[%clk 0:02:53]}  Be7 {[%clk 0:03:00]} 5. Bf4 {[%clk 0:02:51]}  O-O {[%clk 0:03:00]} 6. e3 {[%clk 0:02:47]}  Nbd7 {[%clk 0:03:01]} 7. c5 {[%clk 0:02:45]}  c6 {[%clk 0:03:01]} 8. Bd3 {[%clk 0:02:44]}  b6 {[%clk 0:03:01]} 9. b4 {[%clk 0:02:44]}  a5 {[%clk 0:03:02]} 10. a3 {[%clk 0:02:45]}  Ba6 {[%clk 0:03:02]} 11. Bxa6 {[%clk 0:02:44]}  Rxa6 {[%clk 0:03:03]} 12. b5 {[%clk 0:02:45]}  cxb5 {[%clk 0:03:03]} 13. c6 {[%clk 0:02:46]}  Qc8 {[%clk 0:03:04]} 14. c7 {[%clk 0:02:46]}  b4 {[%clk 0:03:04]} 15. Nb5 {[%clk 0:02:46]}  a4 {[%clk 0:02:53]} 16. axb4 {[%clk 0:02:45]}  Bxb4+ {[%clk 0:02:48]} 17. Ke2 {[%clk 0:02:39]}  Ra5 {[%clk 0:02:26]} 18. Qd3 {[%clk 0:02:30]}  Ne4 {[%clk 0:02:20]} 19. Rhc1 {[%clk 0:02:28]}  Qa6 {[%clk 0:01:24]} 20. Nd6 {[%clk 0:02:26]}  Nxd6 {[%clk 0:00:53]} 21. Qxa6 {[%clk 0:02:17]}  Rxa6 {[%clk 0:00:53]} 22. Bxd6 {[%clk 0:02:17]}  Bxd6 {[%clk 0:00:52]} 23. c8=Q {[%clk 0:02:15]}  Rxc8 {[%clk 0:00:52]} 24. Rxc8+ {[%clk 0:02:15]}  Bf8 {[%clk 0:00:35]} 25. Rd8 {[%clk 0:01:54]}  Ra7 {[%clk 0:00:34]} 26. Rb1 {[%clk 0:01:08]}  a3 {[%clk 0:00:27]} 27. Nd2 {[%clk 0:01:05]}  g6 {[%clk 0:00:24]} 28. Rc8 {[%clk 0:01:03]}  Kg7 {[%clk 0:00:24]} 29. Rc2 {[%clk 0:00:57]}  Nf6 {[%clk 0:00:16]} 30. f3 {[%clk 0:00:56]}  Ne8 {[%clk 0:00:14]} 31. Ra2 {[%clk 0:00:46]}  Ra6 {[%clk 0:00:10]} 32. Rb3 {[%clk 0:00:46]}  Nc7 {[%clk 0:00:09]} 33. Rc3 {[%clk 0:00:38]}  Ra7 {[%clk 0:00:05]} 34. Nb3 {[%clk 0:00:16]}  b5 {[%clk 0:00:05]} 35. Rac2 {[%clk 0:00:16]}  Na6 {[%clk 0:00:02]} 36. Rc8 {[%clk 0:00:16]}  Nb4 {[%clk 0:00:02]} 37. R2c7 {[%clk 0:00:16]}  Rxc7 {[%clk 0:00:01]} 38. Rxc7 {[%clk 0:00:16]}  Na6 {[%clk 0:00:01]} 39. Ra7 {[%clk 0:00:16]}  Nb8 {[%clk 0:00:01]} 40. Ra8 {[%clk 0:00:15]}  Nc6 {[%clk 0:00:02]} 41. Kd3 {[%clk 0:00:15]}  h5 {[%clk 0:00:02]} 42. e4 {[%clk 0:00:15]}  Nb4+ {[%clk 0:00:02]} 43. Kc3 {[%clk 0:00:15]}  Nc6 {[%clk 0:00:02]} 44. exd5 {[%clk 0:00:14]}  exd5 {[%clk 0:00:03]} 45. Kd3 {[%clk 0:00:14]}  b4 {[%clk 0:00:03]} 46. Ra6 {[%clk 0:00:14]}  Ne7 {[%clk 0:00:03]} 47. g4 {[%clk 0:00:13]}  Nf5 {[%clk 0:00:04]} 48. gxf5 {[%clk 0:00:13]}  gxf5 {[%clk 0:00:05]} 49. Nc1 {[%clk 0:00:12]}  Be7 {[%clk 0:00:04]} 50. Kc2 {[%clk 0:00:12]}  Bg5 {[%clk 0:00:04]} 51. Nd3 {[%clk 0:00:11]}  Bf6 {[%clk 0:00:04]} 52. Nxb4 {[%clk 0:00:10]}  Bxd4 {[%clk 0:00:04]} 53. Rxa3 {[%clk 0:00:09]}  Bc5 {[%clk 0:00:04]} 54. Ra4 {[%clk 0:00:10]}  d4 {[%clk 0:00:04]} 55. Nd3 {[%clk 0:00:10]}  Bd6 {[%clk 0:00:05]} 56. Rxd4 {[%clk 0:00:10]}  Bxh2 {[%clk 0:00:05]} 57. Rh4 {[%clk 0:00:10]}  Bd6 {[%clk 0:00:05]} 58. Rxh5 {[%clk 0:00:11]}  Kg6 {[%clk 0:00:05]} 59. Rh1 {[%clk 0:00:12]}  Kg5 {[%clk 0:00:06]} 60. Rg1+ {[%clk 0:00:12]}  Kf6 {[%clk 0:00:06]} 61. Rg8 {[%clk 0:00:12]}  Be7 {[%clk 0:00:04]} 62. Kc3 {[%clk 0:00:13]}  Ke6 {[%clk 0:00:05]} 63. Kd4 {[%clk 0:00:13]}  Bf6+ {[%clk 0:00:05]} 64. Ke3 {[%clk 0:00:14]}  Be7 {[%clk 0:00:06]} 65. Ra8 {[%clk 0:00:14]}  Bg5+ {[%clk 0:00:04]} 66. f4 {[%clk 0:00:14]}  Bh4 {[%clk 0:00:04]} 67. Ra6+ {[%clk 0:00:14]}  Ke7 {[%clk 0:00:04]} 68. Ne5 {[%clk 0:00:15]}  Kf8 {[%clk 0:00:04]} 69. Ra8+ {[%clk 0:00:14]}  Kg7 {[%clk 0:00:04]} 70. Ra7 {[%clk 0:00:15]}  Kh6 {[%clk 0:00:05]} 71. Rxf7 {[%clk 0:00:15]}  Bd8 {[%clk 0:00:03]} 72. Rxf5 {[%clk 0:00:15]}  Bb6+ {[%clk 0:00:03]} 73. Ke4 {[%clk 0:00:15]}  Bc7 {[%clk 0:00:02]} 74. Rf6+ {[%clk 0:00:16]} 1-0


[Site "https://www.chess.com"]

[Event "Titled Tuesday Blitz February 07 Early 2023"]
[White "Seo, Jung Min"]
[Black "Madaminov, Mukhiddin"]
[WhiteFideId "1734687"]
[BlackFideId "14210703"]
[WhiteElo "2494"]
[BlackElo "2422"]
[Result "1-0"]
[Round "10"]
[TimeControl "180+2"]
[Date "2023.02.07"]
[WhiteClock "0:00:59"]
[BlackClock "0:00:14"]

1. e4 {[%clk 0:02:59]}  e5 {[%clk 0:02:59]} 2. Nf3 {[%clk 0:02:59]}  Nc6 {[%clk 0:03:00]} 3. Bb5 {[%clk 0:02:59]}  a6 {[%clk 0:03:00]} 4. Ba4 {[%clk 0:03:00]}  Nf6 {[%clk 0:03:01]} 5. O-O {[%clk 0:03:00]}  Nxe4 {[%clk 0:03:00]} 6. d4 {[%clk 0:03:00]}  b5 {[%clk 0:03:01]} 7. Bb3 {[%clk 0:03:01]}  d5 {[%clk 0:03:01]} 8. dxe5 {[%clk 0:03:01]}  Be6 {[%clk 0:03:02]} 9. Nbd2 {[%clk 0:02:47]}  Be7 {[%clk 0:03:02]} 10. c3 {[%clk 0:02:46]}  O-O {[%clk 0:03:02]} 11. Bc2 {[%clk 0:02:46]}  f5 {[%clk 0:03:02]} 12. Nb3 {[%clk 0:02:44]}  Qd7 {[%clk 0:03:01]} 13. Nbd4 {[%clk 0:02:44]}  Nd8 {[%clk 0:02:58]} 14. Nxe6 {[%clk 0:02:41]}  Nxe6 {[%clk 0:02:55]} 15. Nd4 {[%clk 0:02:41]}  c5 {[%clk 0:02:55]} 16. Nxe6 {[%clk 0:02:41]}  Qxe6 {[%clk 0:02:55]} 17. f3 {[%clk 0:02:41]}  Ng5 {[%clk 0:02:53]} 18. Bxg5 {[%clk 0:02:41]}  Bxg5 {[%clk 0:02:52]} 19. f4 {[%clk 0:02:42]}  Be7 {[%clk 0:02:53]} 20. a4 {[%clk 0:02:38]}  c4 {[%clk 0:02:44]} 21. Kh1 {[%clk 0:02:38]}  Bc5 {[%clk 0:02:42]} 22. b3 {[%clk 0:02:31]}  g6 {[%clk 0:02:37]} 23. h3 {[%clk 0:02:29]}  b4 {[%clk 0:02:28]} 24. cxb4 {[%clk 0:02:26]}  Bxb4 {[%clk 0:02:28]} 25. bxc4 {[%clk 0:02:27]}  dxc4 {[%clk 0:02:29]} 26. Qf3 {[%clk 0:02:25]}  Rad8 {[%clk 0:02:27]} 27. Rad1 {[%clk 0:02:24]}  a5 {[%clk 0:02:21]} 28. Kh2 {[%clk 0:02:23]}  Bd2 {[%clk 0:02:18]} 29. Qe2 {[%clk 0:02:11]}  c3 {[%clk 0:02:06]} 30. Rb1 {[%clk 0:02:06]}  Kg7 {[%clk 0:02:03]} 31. Rb7+ {[%clk 0:02:04]}  Rf7 {[%clk 0:02:00]} 32. Bb3 {[%clk 0:02:01]}  Rd5 {[%clk 0:01:45]} 33. Rxf7+ {[%clk 0:01:57]}  Qxf7 {[%clk 0:01:45]} 34. Qc4 {[%clk 0:01:41]}  Qd7 {[%clk 0:01:26]} 35. Qxd5 {[%clk 0:01:33]}  Qxd5 {[%clk 0:01:26]} 36. Bxd5 {[%clk 0:01:33]}  c2 {[%clk 0:01:27]} 37. g3 {[%clk 0:01:28]}  c1=Q {[%clk 0:01:26]} 38. Rxc1 {[%clk 0:01:28]}  Bxc1 {[%clk 0:01:27]} 39. Kg2 {[%clk 0:01:29]}  h5 {[%clk 0:01:28]} 40. Kf3 {[%clk 0:01:29]}  Bd2 {[%clk 0:01:28]} 41. Bc4 {[%clk 0:01:29]}  Bc1 {[%clk 0:01:25]} 42. g4 {[%clk 0:01:10]}  hxg4+ {[%clk 0:00:55]} 43. hxg4 {[%clk 0:01:09]}  fxg4+ {[%clk 0:00:56]} 44. Kxg4 {[%clk 0:01:09]}  Ba3 {[%clk 0:00:56]} 45. Bd3 {[%clk 0:01:08]}  Be7 {[%clk 0:00:55]} 46. Kf3 {[%clk 0:01:06]}  Ba3 {[%clk 0:00:55]} 47. Ke4 {[%clk 0:01:06]}  Bc1 {[%clk 0:00:55]} 48. Bf1 {[%clk 0:01:06]}  Kf7 {[%clk 0:00:54]} 49. Bh3 {[%clk 0:01:05]}  Ke7 {[%clk 0:00:54]} 50. Bg4 {[%clk 0:01:05]}  Bd2 {[%clk 0:00:54]} 51. Be2 {[%clk 0:01:05]}  Bc1 {[%clk 0:00:54]} 52. Bd3 {[%clk 0:01:05]}  Bd2 {[%clk 0:00:53]} 53. Kf3 {[%clk 0:01:05]}  Kf7 {[%clk 0:00:53]} 54. Kg4 {[%clk 0:01:06]}  Bb4 {[%clk 0:00:18]} 55. Kg5 {[%clk 0:01:06]}  Be7+ {[%clk 0:00:18]} 56. Kh6 {[%clk 0:01:06]}  Bf8+ {[%clk 0:00:19]} 57. Kg5 {[%clk 0:01:02]}  Be7+ {[%clk 0:00:19]} 58. Kh6 {[%clk 0:01:03]}  Bf8+ {[%clk 0:00:20]} 59. Kh7 {[%clk 0:01:03]}  Bb4 {[%clk 0:00:20]} 60. Bc4+ {[%clk 0:00:59]}  Ke7 {[%clk 0:00:15]} 61. Kxg6 {[%clk 0:01:00]}  Bc3 {[%clk 0:00:15]} 62. Kf5 {[%clk 0:00:58]}  Bb2 {[%clk 0:00:13]} 63. Ke4 {[%clk 0:00:59]}  Ke8 {[%clk 0:00:13]} 64. f5 {[%clk 0:00:59]}  Ke7 {[%clk 0:00:14]} 65. f6+ {[%clk 0:00:59]} 1-0


[Site "https://www.chess.com"]

[Event "Titled Tuesday Blitz February 07 Early 2023"]
[White "Murzin, Volodar"]
[Black "Liyanage, Ranindu Dilshan"]
[WhiteFideId "44155573"]
[BlackFideId "9915834"]
[WhiteElo "2604"]
[BlackElo "2342"]
[Result "1-0"]
[Round "10"]
[TimeControl "180+2"]
[Date "2023.02.07"]
[WhiteClock "0:00:51"]
[BlackClock "0:00:56"]

1. Nf3 {[%clk 0:03:00]}  d5 {[%clk 0:02:59]} 2. g3 {[%clk 0:02:59]}  g6 {[%clk 0:02:59]} 3. Bg2 {[%clk 0:02:59]}  Bg7 {[%clk 0:03:00]} 4. c4 {[%clk 0:02:59]}  dxc4 {[%clk 0:02:59]} 5. Na3 {[%clk 0:02:53]}  e5 {[%clk 0:02:58]} 6. Nxc4 {[%clk 0:02:51]}  Nc6 {[%clk 0:02:59]} 7. O-O {[%clk 0:02:50]}  Nge7 {[%clk 0:02:59]} 8. d3 {[%clk 0:02:49]}  Be6 {[%clk 0:02:59]} 9. Ng5 {[%clk 0:02:41]}  Bd5 {[%clk 0:02:59]} 10. Ne4 {[%clk 0:02:39]}  O-O {[%clk 0:02:55]} 11. Ne3 {[%clk 0:02:38]}  Be6 {[%clk 0:02:52]} 12. Nc5 {[%clk 0:02:36]}  Bc8 {[%clk 0:02:52]} 13. Bd2 {[%clk 0:02:35]}  b6 {[%clk 0:02:46]} 14. Ne4 {[%clk 0:02:32]}  h6 {[%clk 0:02:44]} 15. Rc1 {[%clk 0:02:30]}  Bb7 {[%clk 0:02:43]} 16. b4 {[%clk 0:02:24]}  Rb8 {[%clk 0:02:42]} 17. Nc4 {[%clk 0:02:14]}  Nd4 {[%clk 0:02:40]} 18. e3 {[%clk 0:02:06]}  Ne6 {[%clk 0:02:35]} 19. Qb3 {[%clk 0:01:56]}  f5 {[%clk 0:02:23]} 20. Nxb6 {[%clk 0:01:15]}  cxb6 {[%clk 0:01:37]} 21. Qxe6+ {[%clk 0:01:11]}  Kh7 {[%clk 0:01:36]} 22. Nc3 {[%clk 0:01:02]}  Bxg2 {[%clk 0:01:36]} 23. Kxg2 {[%clk 0:01:03]}  Qxd3 {[%clk 0:01:24]} 24. Qxe7 {[%clk 0:00:58]}  Qxd2 {[%clk 0:01:06]} 25. Rfd1 {[%clk 0:00:53]}  Rbe8 {[%clk 0:00:56]} 26. Qxg7+ {[%clk 0:00:51]} 1-0


[Site "https://www.chess.com"]